[Event "1.Frauenbundesliga 2018-19"]
[Site "Germany"]
[Date "2019.01.12"]
[Round "5"]
[White "Barpiyeva, Gulsana"]
[Black "Korenova, Martina"]
[Result "0-1"]
[ECO "A05"]
[WhiteElo "2035"]
[BlackElo "2163"]
[Annotator "NA"]
[PlyCount "124"]
[EventDate "2018.10.27"]
[EventType "team-tourn"]
[EventCountry "GER"]
[SourceTitle "playchess.com"]
[Source "ChessBase"]
[SourceQuality "1"]
[TimeControl "40/5400+30:1800+30"]

1. Nf3 {[%emt 0:00:00]} Nf6 {[%emt 0:00:23]} 2. c4 {[%emt 0:00:00]} g6 {[%emt 0:00:06]} 3. Nc3 {[%emt 0:00:09]} Bg7 {[%emt 0:00:04]} 4. d4 {[%emt 0:01:20]} O-O {[%emt 0:00:17]} 5. e3 {[%emt 0:00:11]} d6 {[%emt 0:00:14]} 6. Be2 {[%emt 0:00:13]} Nbd7 {[%emt 0:00:44]} 7. O-O {[%emt 0:00:25]} e5 {[%emt 0:00:18]} 8. Qc2 {[%emt 0:02:19]} Re8 {[%emt 0:04:02]} 9. b3 {[%emt 0:01:11]} Qe7 {[%emt 0:11:41]} 10. Nb5 {[%emt 0:09:32]} e4 {[%emt 0:01:45]} 11. Nxc7 {[%emt 0:02:46]} exf3 {[%emt 0:00:24]} 12. Bxf3 {[%emt 0:00:22]} Rb8 {[%emt 0:04:48]} 13. Nxe8 {[%emt 0:00:13]} Nxe8 {[%emt 0:00:31]} 14. Bb2 {[%emt 0:05:58]} Nf8 {[%emt 0:03:12]} 15. Rfe1 {[%emt 0:17:21]} g5 {[%emt 0:01:32]} 16. e4 {[%emt 0:05:49]} g4 {[%emt 0:01:21]} 17. Be2 {[%emt 0:01:29]} Ng6 {[%emt 0:00:39]} 18. Bf1 {[%emt 0:01:49]} Qg5 {[%emt 0:03:50]} 19. Rad1 {[%emt 0:01:57]} Bd7 {[%emt 0:01:20]} 20. Bc1 {[%emt 0:03:17]} Qh5 {[%emt 0:01:02]} 21. Qd2 {[%emt 0:03:47]} h6 {[%emt 0:11:10]} 22. b4 {[%emt 0:03:40]} Ba4 {[%emt 0:02:39]} 23. Be2 {[%emt 0:04:47]} Bxd1 {[%emt 0:00:31]} 24. Qxd1 {[%emt 0:00:24]} Qh4 {[%emt 0:07:04]} 25. Bxg4 {[%emt 0:02:34]} Nc7 {[%emt 0:16:02]} 26. Be3 {[%emt 0:05:06]} Re8 {[%emt 0:01:43]} 27. Bf3 {[%emt 0:05:28]} a6 {[%emt 0:04:38]} 28. c5 {[%emt 0:08:23]} dxc5 {[%emt 0:00:13]} 29. bxc5 {[%emt 0:00:10]} Nb5 {[%emt 0:00:46]} 30. g3 {[%emt 0:04:57]} Qe7 {[%emt 0:03:01]} 31. d5 {[%emt 0:03:34]} Nc3 {[%emt 0:01:07]} 32. Qc2 {[%emt 0:00:23]} Ne5 {[%emt 0:00:45]} 33. Bg2 {[%emt 0:00:42]} Nc4 {[%emt 0:02:55]} 34. Qb3 {[%emt 0:03:12]} Nxe3 {[%emt 0:05:31]} 35. d6 {[%emt 0:01:03]} Qe5 {[%emt 0:01:04]} 36. Rxe3 {[%emt 0:00:59]} Qxc5 {[%emt 0:00:08]} 37. d7 {[%emt 0:00:44]} Rd8 {[%emt 0:00:28]} 38. Bh3 {[%emt 0:00:18]} b5 {[%emt 0:06:34]} 39. Bf5 {[%emt 0:00:56]} Qc4 {[%emt 0:00:39]} 40. Qa3 {[%emt 0:01:28]} b4 {[%emt 0:02:17]} 41. Qa5 {[%emt 0:03:12]} Bf6 {[%emt 0:00:00]} 42. Qb6 {[%emt 0:04:38]} Kg7 {[%emt 0:04:12]} 43. e5 {[%emt 0:03:44]} Be7 {[%emt 0:00:47]} 44. e6 {[%emt 0:02:17]} Nd5 {[%emt 0:01:29]} 45. Qa5 {[%emt 0:04:26]} Qc1+ {[%emt 0:01:03]} 46. Kg2 {[%emt 0:00:20]} Nxe3+ {[%emt 0:00:06]} 47. fxe3 {[%emt 0:00:08]} Qb2+ {[%emt 0:03:33]} 48. Kh3 {[%emt 0:01:10]} fxe6 {[%emt 0:01:00]} 49. Bxe6 {[%emt 0:01:20]} Qf6 {[%emt 0:00:40]} 50. Bf5 {[%emt 0:01:44]} Rb8 {[%emt 0:05:47]} 51. e4 {[%emt 0:04:20]} b3 {[%emt 0:01:09]} 52. axb3 {[%emt 0:00:32]} Rxb3 {[%emt 0:00:19]} 53. Qc7 {[%emt 0:01:29]} Bd8 {[%emt 0:02:42]} 54. Qc4 {[%emt 0:00:28]} Qh4+ {[%emt 0:00:48]} 55. Kg2 {[%emt 0:00:26]} Rb2+ {[%emt 0:00:06]} 56. Kf3 {[%emt 0:01:09]} Qh5+ {[%emt 0:01:27]} 57. Ke3 {[%emt 0:00:57]} Bb6+ {[%emt 0:01:55]} 58. Kf4 {[%emt 0:00:21]} Qg5+ {[%emt 0:00:14]} 59. Ke5 {[%emt 0:00:19]} Qf6+ {[%emt 0:00:09]} 60. Kf4 {[%emt 0:00:47]} Rf2+ {[%emt 0:00:06]} 61. Kg4 {[%emt 0:00:13]} Qg5+ {[%emt 0:00:15]} 62. Kh3 Qh5# 0-1

[Event "1.Frauenbundesliga 2018-19"]
[Site "Germany"]
[Date "2019.01.12"]
[Round "5"]
[White "Ankerst, Milka"]
[Black "Belenkaya, Dina"]
[Result "0-1"]
[ECO "D03"]
[WhiteElo "2009"]
[BlackElo "2357"]
[Annotator "NA"]
[PlyCount "68"]
[EventDate "2018.10.27"]
[EventType "team-tourn"]
[EventCountry "GER"]
[SourceTitle "playchess.com"]
[Source "ChessBase"]
[SourceQuality "1"]
[TimeControl "40/5400+30:1800+30"]

1. d4 {[%emt 0:00:00]} d5 {[%emt 0:00:00]} 2. Nf3 {[%emt 0:00:13]} Nf6 {[%emt 0:00:00]} 3. Bg5 {[%emt 0:00:53]} h6 {[%emt 0:01:30]} 4. Bh4 {[%emt 0:00:43]} c6 {[%emt 0:00:55]} 5. c3 {[%emt 0:01:59]} Bf5 {[%emt 0:00:48]} 6. Qb3 {[%emt 0:02:20]} Qb6 {[%emt 0:00:27]} 7. Nbd2 {[%emt 0:03:19]} Nbd7 {[%emt 0:05:42]} 8. h3 {[%emt 0:03:55]} e6 {[%emt 0:01:11]} 9. Bg3 {[%emt 0:02:08]} Be7 {[%emt 0:01:05]} 10. e3 {[%emt 0:00:44]} O-O {[%emt 0:00:35]} 11. Be2 {[%emt 0:01:25]} c5 {[%emt 0:04:22]} 12. dxc5 {[%emt 0:00:35]} Bxc5 {[%emt 0:00:46]} 13. Qxb6 {[%emt 0:06:04]} Bxb6 {[%emt 0:02:46]} 14. Nb3 {[%emt 0:02:41]} Ne4 {[%emt 0:01:07]} 15. Bh2 {[%emt 0:00:34]} Rac8 {[%emt 0:01:24]} 16. Ne5 {[%emt 0:09:43]} Rfd8 {[%emt 0:04:58]} 17. Bf3 {[%emt 0:08:27]} Ndc5 {[%emt 0:00:49]} 18. Nxc5 {[%emt 0:00:32]} Nxc5 {[%emt 0:00:11]} 19. Be2 {[%emt 0:17:43]} Na4 {[%emt 0:07:17]} 20. Bd3 {[%emt 0:01:29]} Nxb2 {[%emt 0:01:20]} 21. Bxf5 {[%emt 0:00:44]} exf5 {[%emt 0:00:04]} 22. Rc1 {[%emt 0:02:52]} f6 {[%emt 0:02:42]} 23. Ng6 {[%emt 0:00:46]} Kf7 {[%emt 0:01:04]} 24. Rc2 {[%emt 0:01:08]} Nd3+ {[%emt 0:03:05]} 25. Ke2 {[%emt 0:03:59]} Nxf2 {[%emt 0:00:30]} 26. Kxf2 {[%emt 0:00:28]} Kxg6 {[%emt 0:00:09]} 27. Rd1 {[%emt 0:00:17]} Kf7 {[%emt 0:04:15]} 28. Kf3 {[%emt 0:00:36]} Ba5 {[%emt 0:01:40]} 29. Rd3 {[%emt 0:00:17]} Rc4 {[%emt 0:00:29]} 30. Bg3 {[%emt 0:01:02]} b5 {[%emt 0:00:35]} 31. Rb2 {[%emt 0:00:24]} a6 {[%emt 0:00:09]} 32. Be1 {[%emt 0:00:39]} Ke6 {[%emt 0:00:09]} 33. Bd2 {[%emt 0:01:34]} Rdc8 {[%emt 0:00:26]} 34. Ke2 {[%emt 0:00:31]} Bxc3 {[%emt 0:00:36]} 0-1

[Event "1.Frauenbundesliga 2018-19"]
[Site "Germany"]
[Date "2019.01.12"]
[Round "5"]
[White "Mayrhuber, Nikola"]
[Black "Melamed, Tatjana"]
[Result "0-1"]
[ECO "D70"]
[WhiteElo "1984"]
[BlackElo "2368"]
[Annotator "NA"]
[PlyCount "70"]
[EventDate "2018.10.27"]
[EventType "team-tourn"]
[EventCountry "GER"]
[SourceTitle "playchess.com"]
[Source "ChessBase"]
[SourceQuality "1"]
[TimeControl "40/5400+30:1800+30"]

1. d4 {[%emt 0:00:00]} Nf6 {[%emt 0:00:00]} 2. c4 {[%emt 0:00:00]} g6 {[%emt 0:01:19]} 3. Nf3 {[%emt 0:00:00]} Bg7 {[%emt 0:00:15]} 4. g3 {[%emt 0:01:15]} O-O {[%emt 0:00:24]} 5. Bg2 {[%emt 0:00:05]} d6 {[%emt 0:00:19]} 6. O-O {[%emt 0:00:15]} c6 {[%emt 0:00:28]} 7. Nc3 {[%emt 0:00:29]} Qb6 {[%emt 0:04:29]} 8. e4 {[%emt 0:14:57]} Bg4 {[%emt 0:05:53]} 9. d5 {[%emt 0:04:42]} Qa6 {[%emt 0:10:18]} 10. Qb3 {[%emt 0:08:30]} Nbd7 {[%emt 0:03:44]} 11. Be3 {[%emt 0:04:42]} cxd5 {[%emt 0:13:51]} 12. cxd5 {[%emt 0:03:06]} Rfc8 {[%emt 0:02:56]} 13. Nd2 {[%emt 0:09:20]} Nc5 {[%emt 0:07:49]} 14. Qc2 {[%emt 0:03:23]} Bd7 {[%emt 0:05:13]} 15. f3 {[%emt 0:04:20]} Qd3 {[%emt 0:04:10]} 16. Qxd3 {[%emt 0:04:18]} Nxd3 {[%emt 0:00:05]} 17. Ne2 {[%emt 0:08:33]} Rc2 {[%emt 0:05:52]} 18. Rab1 {[%emt 0:14:41]} Ne8 {[%emt 0:01:19]} 19. b3 {[%emt 0:05:00]} Rxa2 {[%emt 0:01:52]} 20. Nc1 {[%emt 0:00:08]} Nxc1 {[%emt 0:06:38]} 21. Rfxc1 {[%emt 0:00:03]} Rc8 {[%emt 0:00:52]} 22. Nc4 {[%emt 0:02:52]} Nc7 {[%emt 0:01:31]} 23. Bf1 {[%emt 0:02:24]} Nb5 {[%emt 0:00:35]} 24. f4 {[%emt 0:04:39]} Nd4 {[%emt 0:01:26]} 25. Nd2 {[%emt 0:01:07]} Rcc2 {[%emt 0:02:49]} 26. Rxc2 {[%emt 0:00:59]} Nxc2 {[%emt 0:00:30]} 27. Bf2 {[%emt 0:00:46]} Na3 {[%emt 0:00:28]} 28. Rc1 {[%emt 0:01:47]} Rxd2 {[%emt 0:01:58]} 29. Rc7 {[%emt 0:00:03]} Bb5 {[%emt 0:02:35]} 30. Bxb5 {[%emt 0:01:09]} Nxb5 {[%emt 0:00:06]} 31. Rc8+ {[%emt 0:01:14]} Bf8 {[%emt 0:00:05]} 32. f5 {[%emt 0:00:17]} gxf5 {[%emt 0:01:50]} 33. Be3 {[%emt 0:00:15]} Rd1+ {[%emt 0:00:06]} 34. Kf2 {[%emt 0:00:28]} Kg7 {[%emt 0:00:05]} 35. Ke2 {[%emt 0:00:49]} Rb1 {[%emt 0:00:22]} 0-1

[Event "1.Frauenbundesliga 2018-19"]
[Site "Germany"]
[Date "2019.01.12"]
[Round "5.1"]
[White "Unuk, Laura"]
[Black "Muzychuk, Anna"]
[Result "1/2-1/2"]
[ECO "A80"]
[WhiteElo "2234"]
[BlackElo "2569"]
[Annotator "ChessBase"]
[PlyCount "54"]
[EventDate "2018.10.27"]
[EventType "team-tourn"]
[EventCountry "GER"]
[SourceTitle "playchess.com"]
[Source "ChessBase"]
[SourceQuality "1"]
[TimeControl "40/5400+30:1800+30"]

1. d4 {[%emt 0:00:30]} f5 {[%emt 0:00:30]} 2. Nc3 {[%emt 0:00:00]} Nf6 {[%emt 0:01:30]} 3. Bg5 {[%emt 0:01:00]} d5 {[%emt 0:00:30]} 4. e3 {[%emt 0:01:30]} e6 {[%emt 0:00:30]} 5. Nf3 {[%emt 0:01:30]} Be7 {[%emt 0:04:30]} 6. Bd3 {[%emt 0:00:30]} O-O {[%emt 0:01:30]} 7. Ne2 {[%emt 0:03:30]} Ne4 {[%emt 0:10:30]} 8. Bxe7 {[%emt 0:12:30]} Qxe7 {[%emt 0:00:00]} 9. O-O {[%emt 0:00:30]} Nd7 {[%emt 0:02:00]} 10. c4 {[%emt 0:00:30]} g5 {[%emt 0:03:30]} 11. Ne5 {[%emt 0:08:30]} c6 {[%emt 0:09:30]} 12. f3 {[%emt 0:17:30]} Nxe5 {[%emt 0:03:30]} 13. dxe5 {[%emt 0:01:30]} Nc5 {[%emt 0:00:30]} 14. Rc1 {[%emt 0:06:30]} Bd7 {[%emt 0:02:30]} 15. Bb1 {[%emt 0:13:30]} Rfd8 {[%emt 0:09:30]} 16. b4 {[%emt 0:03:30]} Na6 {[%emt 0:00:00]} 17. a3 {[%emt 0:00:30]} dxc4 {[%emt 0:02:00]} 18. Rxc4 {[%emt 0:03:30]} c5 {[%emt 0:02:30]} 19. bxc5 {[%emt 0:00:30]} Bb5 {[%emt 0:07:30]} 20. Rd4 {[%emt 0:01:30]} Nxc5 {[%emt 0:01:30]} 21. Re1 {[%emt 0:01:30]} Rd7 {[%emt 0:09:30]} 22. Rxd7 {[%emt 0:07:00]} Qxd7 {[%emt 0:00:30]} 23. Nd4 {[%emt 0:01:17]} Bc4 {[%emt 0:05:30]} 24. Qc2 {[%emt 0:00:23]} b5 {[%emt 0:00:30]} 25. Ba2 {[%emt 0:02:54]} Bxa2 {[%emt 0:02:30]} 26. Qxa2 {[%emt 0:01:30]} f4 {[%emt 0:02:59]} 27. Rc1 {[%emt 0:02:07]} Nd3 {[%emt 0:04:52]} 1/2-1/2

[Event "1.Frauenbundesliga 2018-19"]
[Site "Germany"]
[Date "2019.01.12"]
[Round "5.2"]
[White "Kosteniuk, Alexandra"]
[Black "Antolak, Julia"]
[Result "1-0"]
[ECO "E94"]
[WhiteElo "2537"]
[BlackElo "2183"]
[Annotator "ChessBase"]
[PlyCount "73"]
[EventDate "2018.10.27"]
[EventType "team-tourn"]
[EventCountry "GER"]
[SourceTitle "playchess.com"]
[Source "ChessBase"]
[SourceQuality "1"]
[TimeControl "40/5400+30:1800+30"]

1. d4 {[%emt 0:00:30]} Nf6 {[%emt 0:00:30]} 2. c4 {[%emt 0:00:00]} g6 {[%emt 0:00:30]} 3. Nc3 {[%emt 0:00:00]} Bg7 {[%emt 0:00:30]} 4. e4 {[%emt 0:00:00]} d6 {[%emt 0:00:30]} 5. Nf3 {[%emt 0:00:00]} O-O {[%emt 0:00:00]} 6. Be2 {[%emt 0:00:30]} e5 {[%emt 0:01:00]} 7. O-O {[%emt 0:00:00]} Nbd7 {[%emt 0:00:00]} 8. Be3 {[%emt 0:00:00]} Re8 {[%emt 0:10:00]} 9. dxe5 {[%emt 0:14:30]} dxe5 {[%emt 0:06:30]} 10. b4 {[%emt 0:02:30]} a5 {[%emt 0:09:30]} 11. a3 {[%emt 0:01:30]} b6 {[%emt 0:05:30]} 12. c5 {[%emt 0:04:30]} axb4 {[%emt 0:02:30]} 13. axb4 {[%emt 0:00:30]} Rxa1 {[%emt 0:00:30]} 14. Qxa1 {[%emt 0:00:30]} bxc5 {[%emt 0:03:30]} 15. bxc5 {[%emt 0:00:00]} Bb7 {[%emt 0:04:30]} 16. Bc4 {[%emt 0:11:00]} h6 {[%emt 0:08:30]} 17. Qa4 {[%emt 0:12:30]} Qa8 {[%emt 0:07:30]} 18. Qb3 {[%emt 0:01:30]} Rf8 {[%emt 0:11:30]} 19. Nh4 {[%emt 0:03:30]} Nxe4 {[%emt 0:03:30]} 20. Nxe4 {[%emt 0:02:30]} Bxe4 {[%emt 0:00:30]} 21. f3 {[%emt 0:00:30]} Qd8 {[%emt 0:02:30]} 22. Bxf7+ {[%emt 0:03:30]} Kh7 {[%emt 0:02:56]} 23. g3 {[%emt 0:08:30]} Bf5 {[%emt 0:06:11]} 24. Nxf5 {[%emt 0:00:30]} gxf5 {[%emt 0:00:08]} 25. c6 {[%emt 0:06:30]} Nb8 {[%emt 0:01:43]} 26. Bc5 {[%emt 0:03:30]} Rh8 {[%emt 0:01:38]} 27. Be6 {[%emt 0:01:30]} Bf8 {[%emt 0:09:09]} 28. Bxf5+ {[%emt 0:01:30]} Kg7 {[%emt 0:00:06]} 29. Bxf8+ {[%emt 0:00:30]} Qxf8 {[%emt 0:01:40]} 30. Be4 {[%emt 0:05:00]} Qc5+ {[%emt 0:00:25]} 31. Kg2 {[%emt 0:00:15]} Nxc6 {[%emt 0:01:13]} 32. Qe6 {[%emt 0:00:14]} Ne7 {[%emt 0:00:31]} 33. Rd1 {[%emt 0:00:05]} Rf8 {[%emt 0:00:33]} 34. Rd7 {[%emt 0:00:15]} Rf7 {[%emt 0:00:12]} 35. Bg6 {[%emt 0:01:58]} Rf6 {[%emt 0:00:41]} 36. Rxe7+ {[%emt 0:00:05]} Kxg6 {[%emt 0:00:08]} 37. Qg4# {[%emt 0:00:05]} 1-0

[Event "1.Frauenbundesliga 2018-19"]
[Site "Germany"]
[Date "2019.01.12"]
[Round "5.4"]
[White "Zatonskih, Anna"]
[Black "Brandt, Carina"]
[Result "1-0"]
[ECO "A49"]
[WhiteElo "2428"]
[BlackElo "2093"]
[Annotator "NA"]
[PlyCount "51"]
[EventDate "2018.10.27"]
[EventType "team-tourn"]
[EventCountry "GER"]
[SourceTitle "playchess.com"]
[Source "ChessBase"]
[SourceQuality "1"]
[TimeControl "40/5400+30:1800+30"]

1. d4 {[%emt 0:00:30]} Nf6 {[%emt 0:00:30]} 2. Nf3 {[%emt 0:01:30]} g6 {[%emt 0:00:00]} 3. g3 {[%emt 0:00:00]} Bg7 {[%emt 0:00:00]} 4. Bg2 {[%emt 0:00:00]} O-O {[%emt 0:00:30]} 5. O-O {[%emt 0:00:30]} d6 {[%emt 0:00:00]} 6. Re1 {[%emt 0:05:30]} Nc6 {[%emt 0:02:00]} 7. e4 {[%emt 0:08:30]} e5 {[%emt 0:01:30]} 8. c3 {[%emt 0:05:30]} Nd7 {[%emt 0:06:30]} 9. Na3 {[%emt 0:13:30]} a5 {[%emt 0:08:30]} 10. Be3 {[%emt 0:09:30]} f5 {[%emt 0:12:30]} 11. Bg5 {[%emt 0:26:30]} Bf6 {[%emt 0:03:30]} 12. Bxf6 {[%emt 0:00:30]} Rxf6 {[%emt 0:03:30]} 13. exf5 {[%emt 0:04:32]} Rxf5 {[%emt 0:07:30]} 14. Nc4 {[%emt 0:00:28]} Qf8 {[%emt 0:15:30]} 15. dxe5 {[%emt 0:02:02]} Ndxe5 {[%emt 0:03:30]} 16. Nfxe5 {[%emt 0:01:12]} Nxe5 {[%emt 0:00:30]} 17. Nxe5 {[%emt 0:00:29]} dxe5 {[%emt 0:00:30]} 18. Qd5+ {[%emt 0:01:47]} Kg7 {[%emt 0:04:30]} 19. Rxe5 {[%emt 0:01:43]} Rxf2 {[%emt 0:03:30]} 20. Qd4 {[%emt 0:00:17]} Rf6 {[%emt 0:01:30]} 21. Rae1 {[%emt 0:00:11]} Bf5 {[%emt 0:06:14]} 22. Re7+ {[%emt 0:00:18]} Kh8 {[%emt 0:00:09]} 23. Re8 {[%emt 0:00:46]} Rxe8 {[%emt 0:00:13]} 24. Rxe8 {[%emt 0:00:02]} Qxe8 {[%emt 0:00:22]} 25. Qxf6+ {[%emt 0:00:06]} Kg8 {[%emt 0:00:05]} 26. Bd5+ {[%emt 0:00:04]} 1-0

[Event "1.Frauenbundesliga 2018-19"]
[Site "Germany"]
[Date "2019.01.12"]
[Round "5.5"]
[White "Sherif, Amina"]
[Black "Arakhamia-Grant, Ketevan"]
[Result "0-1"]
[ECO "B32"]
[WhiteElo "1950"]
[BlackElo "2372"]
[Annotator "NA"]
[PlyCount "130"]
[EventDate "2018.10.27"]
[EventType "team-tourn"]
[EventCountry "GER"]
[SourceTitle "playchess.com"]
[Source "ChessBase"]
[SourceQuality "1"]
[TimeControl "40/5400+30:1800+30"]

1. e4 {[%emt 0:00:30]} c5 {[%emt 0:00:00]} 2. Nf3 {[%emt 0:00:30]} Nc6 {[%emt 0:01:00]} 3. d4 {[%emt 0:00:00]} cxd4 {[%emt 0:00:30]} 4. Nxd4 {[%emt 0:00:00]} e5 {[%emt 0:00:30]} 5. Nb5 {[%emt 0:01:30]} d6 {[%emt 0:00:30]} 6. c4 {[%emt 0:00:30]} Be7 {[%emt 0:00:30]} 7. N1c3 {[%emt 0:01:30]} a6 {[%emt 0:00:30]} 8. Na3 {[%emt 0:00:30]} Be6 {[%emt 0:00:00]} 9. Bd3 {[%emt 0:06:30]} Bg5 {[%emt 0:07:00]} 10. Nc2 {[%emt 0:02:30]} h6 {[%emt 0:04:30]} 11. O-O {[%emt 0:08:30]} Nf6 {[%emt 0:03:30]} 12. h3 {[%emt 0:13:30]} O-O {[%emt 0:03:30]} 13. Be3 {[%emt 0:07:30]} Bxe3 {[%emt 0:05:30]} 14. Nxe3 {[%emt 0:00:00]} Nd4 {[%emt 0:00:30]} 15. b3 {[%emt 0:11:00]} Rb8 {[%emt 0:03:30]} 16. Ne2 {[%emt 0:02:30]} Qb6 {[%emt 0:06:30]} 17. Rc1 {[%emt 0:04:30]} Rfc8 {[%emt 0:03:30]} 18. Nxd4 {[%emt 0:05:30]} Qxd4 {[%emt 0:00:30]} 19. Bb1 {[%emt 0:04:30]} Qc5 {[%emt 0:21:30]} 20. Qd2 {[%emt 0:03:30]} a5 {[%emt 0:05:30]} 21. Rfd1 {[%emt 0:05:30]} Rd8 {[%emt 0:00:30]} 22. Nd5 {[%emt 0:00:30]} Bxd5 {[%emt 0:01:30]} 23. cxd5 {[%emt 0:06:49]} Qb6 {[%emt 0:00:00]} 24. Rc3 {[%emt 0:01:06]} Nd7 {[%emt 0:03:00]} 25. Rdc1 {[%emt 0:01:12]} Qb4 {[%emt 0:09:12]} 26. Qe2 {[%emt 0:00:52]} Nf6 {[%emt 0:02:10]} 27. Rc4 {[%emt 0:02:35]} Qb6 {[%emt 0:03:02]} 28. Bd3 {[%emt 0:00:26]} Nd7 {[%emt 0:02:26]} 29. Qg4 {[%emt 0:01:43]} Nc5 {[%emt 0:01:27]} 30. Be2 {[%emt 0:00:19]} Qc7 {[%emt 0:01:15]} 31. R4c3 {[%emt 0:00:58]} Qe7 {[%emt 0:04:43]} 32. Bb5 {[%emt 0:00:50]} g6 {[%emt 0:05:19]} 33. a3 {[%emt 0:00:28]} h5 {[%emt 0:00:45]} 34. Qf3 {[%emt 0:00:20]} Qg5 {[%emt 0:00:55]} 35. R1c2 {[%emt 0:01:51]} Qh4 {[%emt 0:01:43]} 36. Rc4 {[%emt 0:01:21]} Qf4 {[%emt 0:00:30]} 37. Qxf4 {[%emt 0:01:33]} exf4 {[%emt 0:00:01]} 38. b4 {[%emt 0:00:31]} axb4 {[%emt 0:00:07]} 39. axb4 {[%emt 0:00:03]} Nd3 {[%emt 0:00:18]} 40. f3 {[%emt 0:03:15]} Ra8 {[%emt 0:01:24]} 41. Kf1 {[%emt 0:02:18]} Ne5 {[%emt 0:06:13]} 42. Rc7 {[%emt 0:01:30]} Rdb8 {[%emt 0:05:31]} 43. Ke2 {[%emt 0:06:30]} Kg7 {[%emt 0:00:29]} 44. h4 {[%emt 0:07:07]} Ra3 {[%emt 0:10:41]} 45. R2c3 {[%emt 0:02:36]} Ra2+ {[%emt 0:02:23]} 46. Rc2 {[%emt 0:01:40]} Rba8 {[%emt 0:00:29]} 47. Rxa2 {[%emt 0:06:47]} Rxa2+ {[%emt 0:00:05]} 48. Kf1 {[%emt 0:00:11]} Ra1+ {[%emt 0:07:19]} 49. Kf2 {[%emt 0:00:08]} Ra2+ {[%emt 0:00:04]} 50. Kf1 {[%emt 0:00:19]} Rb2 {[%emt 0:00:07]} 51. Rxb7 {[%emt 0:00:13]} Rxb4 {[%emt 0:00:06]} 52. Ba6 {[%emt 0:00:39]} Rxb7 {[%emt 0:02:00]} 53. Bxb7 {[%emt 0:00:01]} f6 {[%emt 0:00:32]} 54. Kf2 {[%emt 0:00:53]} g5 {[%emt 0:00:12]} 55. hxg5 {[%emt 0:00:44]} fxg5 {[%emt 0:00:02]} 56. g3 {[%emt 0:01:34]} Kf6 {[%emt 0:01:34]} 57. gxf4 {[%emt 0:01:19]} Nd3+ {[%emt 0:00:06]} 58. Kg3 {[%emt 0:00:40]} Nxf4 {[%emt 0:00:06]} 59. Bc8 {[%emt 0:00:24]} Ke5 {[%emt 0:00:10]} 60. Bf5 {[%emt 0:00:22]} Nxd5 {[%emt 0:00:46]} 61. Bg6 {[%emt 0:00:39]} Nf6 {[%emt 0:01:07]} 62. Bf7 {[%emt 0:00:25]} h4+ {[%emt 0:00:25]} 63. Kg2 {[%emt 0:00:58]} Kf4 {[%emt 0:00:08]} 64. Bg6 {[%emt 0:00:18]} Nd7 {[%emt 0:00:20]} 65. Bh5 {[%emt 0:00:15]} Ne5 {[%emt 0:00:12]} 0-1

[Event "1.Frauenbundesliga 2018-19"]
[Site "Germany"]
[Date "2019.01.12"]
[Round "5.6"]
[White "Tammert, Iamze"]
[Black "Waechter, Nathalie"]
[Result "1-0"]
[ECO "A13"]
[WhiteElo "2280"]
[BlackElo "2055"]
[Annotator "NA"]
[PlyCount "59"]
[EventDate "2018.10.27"]
[EventType "team-tourn"]
[EventCountry "GER"]
[SourceTitle "playchess.com"]
[Source "ChessBase"]
[SourceQuality "1"]
[TimeControl "40/5400+30:1800+30"]

1. c4 {[%emt 0:00:30]} e6 {[%emt 0:00:30]} 2. Nf3 {[%emt 0:00:00]} d5 {[%emt 0:00:00]} 3. e3 {[%emt 0:01:00]} Nf6 {[%emt 0:01:00]} 4. b3 {[%emt 0:01:30]} c5 {[%emt 0:00:30]} 5. Bb2 {[%emt 0:00:30]} Nc6 {[%emt 0:00:30]} 6. d4 {[%emt 0:19:30]} b6 {[%emt 0:04:30]} 7. cxd5 {[%emt 0:06:30]} exd5 {[%emt 0:08:30]} 8. Ne5 {[%emt 0:05:30]} Bb7 {[%emt 0:07:30]} 9. Bb5 {[%emt 0:04:30]} Qc7 {[%emt 0:23:30]} 10. Nc3 {[%emt 0:03:30]} a6 {[%emt 0:03:30]} 11. Bxc6+ {[%emt 0:02:30]} Bxc6 {[%emt 0:03:30]} 12. Nxc6 {[%emt 0:04:30]} Qxc6 {[%emt 0:00:30]} 13. dxc5 {[%emt 0:00:30]} Bxc5 {[%emt 0:05:30]} 14. O-O {[%emt 0:00:00]} O-O {[%emt 0:00:00]} 15. Ne2 {[%emt 0:01:00]} Rad8 {[%emt 0:05:00]} 16. Bd4 {[%emt 0:03:30]} Rfe8 {[%emt 0:01:30]} 17. Rc1 {[%emt 0:00:30]} Qd6 {[%emt 0:00:30]} 18. Qd3 {[%emt 0:00:30]} Ng4 {[%emt 0:03:30]} 19. g3 {[%emt 0:19:30]} Qh6 {[%emt 0:05:30]} 20. h4 {[%emt 0:00:30]} Bxd4 {[%emt 0:07:39]} 21. Nxd4 {[%emt 0:11:37]} Nxe3 {[%emt 0:01:44]} 22. Rc6 {[%emt 0:00:28]} Rd6 {[%emt 0:00:58]} 23. Rxd6 {[%emt 0:00:06]} Qxd6 {[%emt 0:00:02]} 24. Re1 {[%emt 0:00:12]} Qa3 {[%emt 0:08:17]} 25. Rxe3 {[%emt 0:00:25]} Rc8 {[%emt 0:00:12]} 26. Nf5 {[%emt 0:01:41]} Rf8 {[%emt 0:01:31]} 27. Qd4 {[%emt 0:00:27]} f6 {[%emt 0:02:04]} 28. Qxd5+ {[%emt 0:00:29]} Kh8 {[%emt 0:00:07]} 29. Qb7 {[%emt 0:00:13]} Rg8 {[%emt 0:00:50]} 30. Re8 1-0

[Event "1.Frauenbundesliga 2018-19"]
[Site "Germany"]
[Date "2019.01.12"]
[Round "5.9"]
[White "Hoolt, Sarah"]
[Black "Muetsch, Annmarie"]
[Result "1-0"]
[ECO "B20"]
[WhiteElo "2358"]
[BlackElo "2259"]
[Annotator "NA"]
[PlyCount "71"]
[EventDate "2018.10.27"]
[EventType "team-tourn"]
[EventCountry "GER"]
[SourceTitle "playchess.com"]
[Source "ChessBase"]
[SourceQuality "1"]
[TimeControl "40/5400+30:1800+30"]

1. e4 {[%emt 0:00:30]} c5 {[%emt 0:00:30]} 2. d3 {[%emt 0:00:00]} Nc6 {[%emt 0:02:30]} 3. g3 {[%emt 0:00:00]} g6 {[%emt 0:01:30]} 4. Bg2 {[%emt 0:00:00]} Bg7 {[%emt 0:00:00]} 5. f4 {[%emt 0:00:00]} d6 {[%emt 0:05:00]} 6. Nf3 {[%emt 0:00:30]} e6 {[%emt 0:01:30]} 7. c3 {[%emt 0:00:30]} Nge7 {[%emt 0:00:30]} 8. O-O {[%emt 0:00:00]} O-O {[%emt 0:02:30]} 9. Be3 {[%emt 0:00:00]} b6 {[%emt 0:01:30]} 10. Bf2 {[%emt 0:00:30]} Bb7 {[%emt 0:03:30]} 11. Re1 {[%emt 0:03:30]} Qc7 {[%emt 0:03:30]} 12. d4 {[%emt 0:00:30]} cxd4 {[%emt 0:02:30]} 13. cxd4 {[%emt 0:00:30]} d5 {[%emt 0:03:30]} 14. e5 {[%emt 0:00:30]} Qd7 {[%emt 0:07:30]} 15. Nc3 {[%emt 0:06:30]} Na5 {[%emt 0:01:30]} 16. Bf1 {[%emt 0:05:30]} Rfc8 {[%emt 0:07:30]} 17. Rc1 {[%emt 0:08:30]} Rc7 {[%emt 0:11:30]} 18. b3 {[%emt 0:05:30]} Bf8 {[%emt 0:05:30]} 19. Qd2 {[%emt 0:07:30]} Rac8 {[%emt 0:07:30]} 20. g4 {[%emt 0:12:30]} Bc6 {[%emt 0:03:30]} 21. Bd3 {[%emt 0:03:30]} Rb8 {[%emt 0:07:51]} 22. Qe2 {[%emt 0:12:30]} Qc8 {[%emt 0:05:09]} 23. Be3 {[%emt 0:02:30]} Qb7 {[%emt 0:07:54]} 24. Nh4 {[%emt 0:03:30]} Bd7 {[%emt 0:02:10]} 25. f5 {[%emt 0:02:30]} b5 {[%emt 0:01:09]} 26. fxe6 {[%emt 0:09:58]} fxe6 {[%emt 0:00:10]} 27. Rf1 {[%emt 0:03:08]} Bg7 {[%emt 0:02:37]} 28. Bg5 {[%emt 0:00:27]} b4 {[%emt 0:02:38]} 29. Bxe7 {[%emt 0:01:06]} Rxc3 {[%emt 0:00:06]} 30. Rxc3 {[%emt 0:03:30]} bxc3 {[%emt 0:00:06]} 31. Bd6 {[%emt 0:03:47]} Nc6 {[%emt 0:00:15]} 32. Nf3 {[%emt 0:01:45]} Bf8 {[%emt 0:01:35]} 33. Bxb8 {[%emt 0:00:29]} Nxb8 {[%emt 0:01:03]} 34. Ng5 {[%emt 0:00:50]} Qc8 {[%emt 0:00:42]} 35. Qf2 {[%emt 0:01:29]} Qe8 {[%emt 0:00:30]} 36. Nxh7 {[%emt 0:00:00]} 1-0